[Event "Titled Tuesday Blitz April 19 Early 2022"]
[White "Rustemov, Alexander"]
[Black "Avramidou, Anastasia"]
[WhiteFideId "4119002"]
[BlackFideId "4239873"]
[WhiteElo "2775"]
[BlackElo "2183"]
[Result "1-0"]
[Round "05"]
[TimeControl "180+1"]
[Date "2022.04.19"]
[WhiteClock "0:00:45"]
[BlackClock "0:00:05"]

1. d4 {[%clk 0:03:00]}  Nf6 {[%clk 0:02:57]} 2. c4 {[%clk 0:03:01]}  e6 {[%clk 0:02:57]} 3. Nf3 {[%clk 0:03:01]}  d5 {[%clk 0:02:58]} 4. Nc3 {[%clk 0:03:01]}  a6 {[%clk 0:02:58]} 5. cxd5 {[%clk 0:03:00]}  exd5 {[%clk 0:02:58]} 6. Bg5 {[%clk 0:03:01]}  Be7 {[%clk 0:02:59]} 7. e3 {[%clk 0:03:01]}  O-O {[%clk 0:02:57]} 8. Bd3 {[%clk 0:03:02]}  Re8 {[%clk 0:02:57]} 9. Qc2 {[%clk 0:03:01]}  h6 {[%clk 0:02:57]} 10. Bh4 {[%clk 0:02:57]}  c6 {[%clk 0:02:56]} 11. O-O {[%clk 0:02:53]}  Bg4 {[%clk 0:02:56]} 12. Ne5 {[%clk 0:02:52]}  Nbd7 {[%clk 0:02:42]} 13. f4 {[%clk 0:02:41]}  Rc8 {[%clk 0:01:59]} 14. h3 {[%clk 0:02:34]}  Bh5 {[%clk 0:01:49]} 15. g4 {[%clk 0:02:34]}  Nxe5 {[%clk 0:01:40]} 16. fxe5 {[%clk 0:02:27]}  Nxg4 {[%clk 0:00:48]} 17. hxg4 {[%clk 0:02:19]}  Bxh4 {[%clk 0:00:38]} 18. gxh5 {[%clk 0:02:19]}  Qg5+ {[%clk 0:00:38]} 19. Kh1 {[%clk 0:02:12]}  Qxe3 {[%clk 0:00:36]} 20. Rad1 {[%clk 0:02:04]}  f6 {[%clk 0:00:17]} 21. Bf5 {[%clk 0:01:56]}  Rcd8 {[%clk 0:00:14]} 22. e6 {[%clk 0:01:54]}  Qg3 {[%clk 0:00:09]} 23. Qg2 {[%clk 0:01:53]}  Qxg2+ {[%clk 0:00:08]} 24. Kxg2 {[%clk 0:01:53]}  Bg5 {[%clk 0:00:09]} 25. Kf3 {[%clk 0:01:49]}  Kf8 {[%clk 0:00:09]} 26. b4 {[%clk 0:01:42]}  Ke7 {[%clk 0:00:09]} 27. a4 {[%clk 0:01:41]}  Kd6 {[%clk 0:00:10]} 28. Rb1 {[%clk 0:01:33]}  Ra8 {[%clk 0:00:09]} 29. Ke2 {[%clk 0:01:31]}  Re7 {[%clk 0:00:09]} 30. Kd3 {[%clk 0:01:31]}  Ree8 {[%clk 0:00:10]} 31. Rb3 {[%clk 0:01:30]}  Re7 {[%clk 0:00:10]} 32. Rfb1 {[%clk 0:01:31]}  Rc7 {[%clk 0:00:10]} 33. Ne2 {[%clk 0:01:13]}  Rcc8 {[%clk 0:00:10]} 34. Rf1 {[%clk 0:01:02]}  Rc7 {[%clk 0:00:10]} 35. Nf4 {[%clk 0:01:02]}  Re7 {[%clk 0:00:09]} 36. Ng6 {[%clk 0:01:00]}  Rc7 {[%clk 0:00:09]} 37. e7 {[%clk 0:00:59]}  Re8 {[%clk 0:00:09]} 38. Re1 {[%clk 0:00:59]}  b5 {[%clk 0:00:03]} 39. a5 {[%clk 0:00:56]}  Ra7 {[%clk 0:00:02]} 40. Re6+ {[%clk 0:00:54]}  Kc7 {[%clk 0:00:02]} 41. Rc3 {[%clk 0:00:54]}  Kb7 {[%clk 0:00:03]} 42. Rcxc6 {[%clk 0:00:54]}  Raa8 {[%clk 0:00:02]} 43. Rb6+ {[%clk 0:00:49]}  Ka7 {[%clk 0:00:03]} 44. Rxa6+ {[%clk 0:00:48]}  Kb7 {[%clk 0:00:03]} 45. Reb6+ {[%clk 0:00:47]}  Kc7 {[%clk 0:00:04]} 46. Rc6+ {[%clk 0:00:44]}  Kb7 {[%clk 0:00:04]} 47. Rab6+ {[%clk 0:00:44]}  Ka7 {[%clk 0:00:05]} 48. Rc7# {[%clk 0:00:45]} 1-0


[Site "https://www.chess.com"]

[Event "Titled Tuesday Blitz April 19 Early 2022"]
[White "Samant Aditya S"]
[Black "Mikhailovsky, Vladimir"]
[WhiteFideId "35080580"]
[BlackFideId "34105414"]
[WhiteElo "1916"]
[BlackElo "2349"]
[Result "0-1"]
[Round "05"]
[TimeControl "180+1"]
[Date "2022.04.19"]
[WhiteClock "0:00:06"]
[BlackClock "0:00:12"]

1. e4 {[%clk 0:03:00]}  Nf6 {[%clk 0:02:59]} 2. e5 {[%clk 0:02:59]}  Nd5 {[%clk 0:02:59]} 3. d4 {[%clk 0:03:00]}  d6 {[%clk 0:03:00]} 4. Nf3 {[%clk 0:03:00]}  dxe5 {[%clk 0:03:00]} 5. Nxe5 {[%clk 0:03:01]}  c6 {[%clk 0:03:01]} 6. Be2 {[%clk 0:03:00]}  Bf5 {[%clk 0:03:01]} 7. O-O {[%clk 0:02:34]}  Nd7 {[%clk 0:03:01]} 8. Nf3 {[%clk 0:02:34]}  e6 {[%clk 0:03:01]} 9. c4 {[%clk 0:02:23]}  N5f6 {[%clk 0:03:01]} 10. Nc3 {[%clk 0:02:22]}  Bd6 {[%clk 0:03:02]} 11. Bg5 {[%clk 0:02:17]}  O-O {[%clk 0:03:01]} 12. Re1 {[%clk 0:02:14]}  Qc7 {[%clk 0:03:01]} 13. Bh4 {[%clk 0:02:10]}  Ne4 {[%clk 0:02:48]} 14. Nxe4 {[%clk 0:01:42]}  Bxe4 {[%clk 0:02:49]} 15. Bg3 {[%clk 0:01:42]}  Bxg3 {[%clk 0:02:47]} 16. hxg3 {[%clk 0:01:43]}  Rfd8 {[%clk 0:02:40]} 17. Qb3 {[%clk 0:01:35]}  c5 {[%clk 0:02:36]} 18. Rad1 {[%clk 0:01:28]}  Rac8 {[%clk 0:02:29]} 19. Qe3 {[%clk 0:01:19]}  Bg6 {[%clk 0:02:04]} 20. b3 {[%clk 0:01:04]}  b6 {[%clk 0:02:00]} 21. Rd2 {[%clk 0:01:02]}  Nf6 {[%clk 0:01:46]} 22. dxc5 {[%clk 0:00:44]}  Rxd2 {[%clk 0:01:23]} 23. Nxd2 {[%clk 0:00:45]}  bxc5 {[%clk 0:01:18]} 24. Nf3 {[%clk 0:00:45]}  Rd8 {[%clk 0:01:17]} 25. Rd1 {[%clk 0:00:45]}  Rxd1+ {[%clk 0:01:17]} 26. Bxd1 {[%clk 0:00:46]}  h6 {[%clk 0:01:13]} 27. Ne5 {[%clk 0:00:21]}  Bb1 {[%clk 0:01:13]} 28. a4 {[%clk 0:00:19]}  Qd6 {[%clk 0:01:08]} 29. Bf3 {[%clk 0:00:18]}  a5 {[%clk 0:01:02]} 30. Nc6 {[%clk 0:00:17]}  Be4 {[%clk 0:00:48]} 31. Nxa5 {[%clk 0:00:13]}  Qd8 {[%clk 0:00:36]} 32. Qxc5 {[%clk 0:00:08]}  Qd2 {[%clk 0:00:19]} 33. Qe3 {[%clk 0:00:07]}  Qc2 {[%clk 0:00:11]} 34. Bxe4 {[%clk 0:00:06]}  Qd1+ {[%clk 0:00:12]} 0-1


[Site "https://www.chess.com"]

[Event "Titled Tuesday Blitz April 19 Early 2022"]
[White "Sapunov, Evgeny"]
[Black "Mortazavi, Ali"]
[WhiteFideId "4126661"]
[BlackFideId "401323"]
[WhiteElo "2470"]
[BlackElo "2339"]
[Result "1-0"]
[Round "05"]
[TimeControl "180+1"]
[Date "2022.04.19"]
[WhiteClock "0:00:33"]
[BlackClock "0:00:10"]

1. c4 {[%clk 0:02:57]}  Nf6 {[%clk 0:02:59]} 2. Nf3 {[%clk 0:02:56]}  g6 {[%clk 0:02:59]} 3. Nc3 {[%clk 0:02:56]}  Bg7 {[%clk 0:03:00]} 4. e4 {[%clk 0:02:57]}  O-O {[%clk 0:03:00]} 5. d4 {[%clk 0:02:57]}  d6 {[%clk 0:03:01]} 6. Be2 {[%clk 0:02:57]}  Bg4 {[%clk 0:03:02]} 7. Be3 {[%clk 0:02:57]}  Nbd7 {[%clk 0:03:02]} 8. O-O {[%clk 0:02:56]}  e5 {[%clk 0:03:03]} 9. d5 {[%clk 0:02:57]}  a5 {[%clk 0:02:57]} 10. a3 {[%clk 0:02:57]}  b6 {[%clk 0:02:56]} 11. b4 {[%clk 0:02:56]}  Nh5 {[%clk 0:02:56]} 12. h3 {[%clk 0:02:46]}  Bxf3 {[%clk 0:02:56]} 13. Bxf3 {[%clk 0:02:47]}  Nf4 {[%clk 0:02:56]} 14. Kh2 {[%clk 0:02:47]}  f5 {[%clk 0:02:45]} 15. g3 {[%clk 0:02:41]}  axb4 {[%clk 0:02:29]} 16. axb4 {[%clk 0:02:39]}  Rxa1 {[%clk 0:02:25]} 17. Qxa1 {[%clk 0:02:39]}  Nd3 {[%clk 0:02:19]} 18. Qb1 {[%clk 0:02:39]}  Nf4 {[%clk 0:01:36]} 19. exf5 {[%clk 0:02:17]}  gxf5 {[%clk 0:01:30]} 20. gxf4 {[%clk 0:02:13]}  exf4 {[%clk 0:01:27]} 21. Bd2 {[%clk 0:02:13]}  Ne5 {[%clk 0:01:28]} 22. Qd1 {[%clk 0:02:13]}  Nxc4 {[%clk 0:01:24]} 23. Qe2 {[%clk 0:02:04]}  Ne5 {[%clk 0:01:10]} 24. Rg1 {[%clk 0:01:49]}  Qh4 {[%clk 0:01:07]} 25. Nb5 {[%clk 0:01:32]}  Rf6 {[%clk 0:01:00]} 26. Nd4 {[%clk 0:01:00]}  Rh6 {[%clk 0:00:59]} 27. Rxg7+ {[%clk 0:00:56]}  Kh8 {[%clk 0:01:00]} 28. Qf1 {[%clk 0:00:56]}  Ng4+ {[%clk 0:00:20]} 29. Rxg4 {[%clk 0:00:53]}  fxg4 {[%clk 0:00:20]} 30. Bxg4 {[%clk 0:00:54]}  Qxg4 {[%clk 0:00:18]} 31. Ne6 {[%clk 0:00:39]}  Kg8 {[%clk 0:00:14]} 32. Bxf4 {[%clk 0:00:34]}  Kf7 {[%clk 0:00:10]} 33. Bxh6 {[%clk 0:00:33]} 1-0


[Site "https://www.chess.com"]

[Event "Titled Tuesday Blitz April 19 Early 2022"]
[White "Sarana, Alexey"]
[Black "Mitrabha, Guha"]
[WhiteFideId "24133795"]
[BlackFideId "5057000"]
[WhiteElo "2666"]
[BlackElo "2468"]
[Result "1-0"]
[Round "05"]
[TimeControl "180+1"]
[Date "2022.04.19"]
[WhiteClock "0:00:40"]
[BlackClock "0:00:15"]

1. d4 {[%clk 0:03:00]}  Nf6 {[%clk 0:02:53]} 2. c4 {[%clk 0:03:01]}  c5 {[%clk 0:02:52]} 3. d5 {[%clk 0:03:01]}  b5 {[%clk 0:02:48]} 4. cxb5 {[%clk 0:03:01]}  a6 {[%clk 0:02:47]} 5. Nc3 {[%clk 0:03:02]}  axb5 {[%clk 0:02:45]} 6. e4 {[%clk 0:03:02]}  b4 {[%clk 0:02:45]} 7. Nb5 {[%clk 0:03:02]}  d6 {[%clk 0:02:44]} 8. Bf4 {[%clk 0:03:02]}  g6 {[%clk 0:02:31]} 9. e5 {[%clk 0:02:53]}  Nh5 {[%clk 0:02:31]} 10. exd6 {[%clk 0:02:50]}  exd6 {[%clk 0:02:30]} 11. Qe2+ {[%clk 0:02:48]}  Kd7 {[%clk 0:02:13]} 12. Be3 {[%clk 0:02:28]}  Ba6 {[%clk 0:02:02]} 13. Nf3 {[%clk 0:02:16]}  Qa5 {[%clk 0:01:50]} 14. Ng5 {[%clk 0:02:08]}  Bxb5 {[%clk 0:01:25]} 15. Qxb5+ {[%clk 0:02:06]}  Qxb5 {[%clk 0:01:25]} 16. Bxb5+ {[%clk 0:02:07]}  Ke7 {[%clk 0:01:26]} 17. O-O-O {[%clk 0:01:46]}  h6 {[%clk 0:01:23]} 18. Rhe1 {[%clk 0:01:41]}  Kf6 {[%clk 0:01:13]} 19. Ne4+ {[%clk 0:01:25]}  Kg7 {[%clk 0:01:13]} 20. Kb1 {[%clk 0:01:17]}  f5 {[%clk 0:01:10]} 21. Nd2 {[%clk 0:01:13]}  f4 {[%clk 0:01:07]} 22. Bxc5 {[%clk 0:01:11]}  dxc5 {[%clk 0:01:07]} 23. Nc4 {[%clk 0:01:12]}  Nf6 {[%clk 0:01:02]} 24. Re6 {[%clk 0:00:45]}  Nbd7 {[%clk 0:00:54]} 25. Rc6 {[%clk 0:00:45]}  Ra7 {[%clk 0:00:53]} 26. d6 {[%clk 0:00:45]}  Kf7 {[%clk 0:00:15]} 27. Rc7 {[%clk 0:00:45]}  Rxc7 {[%clk 0:00:15]} 28. dxc7 {[%clk 0:00:46]}  Nb6 {[%clk 0:00:15]} 29. Nxb6 {[%clk 0:00:40]} 1-0


[Site "https://www.chess.com"]

[Event "Titled Tuesday Blitz April 19 Early 2022"]
[White "Schekachikhin, Maksim"]
[Black "Melikhov, Evgeny V."]
[WhiteFideId "24177830"]
[BlackFideId "4122046"]
[WhiteElo "2230"]
[BlackElo "1931"]
[Result "1-0"]
[Round "05"]
[TimeControl "180+1"]
[Date "2022.04.19"]
[WhiteClock "0:01:20"]
[BlackClock "0:00:35"]

1. d4 {[%clk 0:02:59]}  Nf6 {[%clk 0:02:57]} 2. c4 {[%clk 0:02:59]}  e6 {[%clk 0:02:42]} 3. Nc3 {[%clk 0:02:57]}  Bb4 {[%clk 0:02:41]} 4. e3 {[%clk 0:02:57]}  b6 {[%clk 0:02:41]} 5. Bd3 {[%clk 0:02:44]}  Bb7 {[%clk 0:02:38]} 6. Nf3 {[%clk 0:02:44]}  Be4 {[%clk 0:02:29]} 7. O-O {[%clk 0:02:42]}  Bxd3 {[%clk 0:02:26]} 8. Qxd3 {[%clk 0:02:42]}  Bxc3 {[%clk 0:02:18]} 9. Qxc3 {[%clk 0:02:39]}  d5 {[%clk 0:02:15]} 10. b3 {[%clk 0:02:33]}  O-O {[%clk 0:02:13]} 11. Ba3 {[%clk 0:02:32]}  c5 {[%clk 0:02:02]} 12. dxc5 {[%clk 0:02:30]}  Qe7 {[%clk 0:02:01]} 13. cxb6 {[%clk 0:02:24]}  Qxa3 {[%clk 0:01:50]} 14. b7 {[%clk 0:02:24]}  Nbd7 {[%clk 0:01:45]} 15. bxa8=Q {[%clk 0:02:22]}  Rxa8 {[%clk 0:01:46]} 16. cxd5 {[%clk 0:02:21]}  Nxd5 {[%clk 0:01:44]} 17. Qc6 {[%clk 0:02:19]}  N7b6 {[%clk 0:01:42]} 18. Rfc1 {[%clk 0:02:17]}  h6 {[%clk 0:01:40]} 19. Qc5 {[%clk 0:02:04]}  Qb2 {[%clk 0:01:32]} 20. a4 {[%clk 0:01:52]}  Rc8 {[%clk 0:01:30]} 21. Qxc8+ {[%clk 0:01:47]}  Nxc8 {[%clk 0:01:30]} 22. Rxc8+ {[%clk 0:01:47]}  Kh7 {[%clk 0:01:30]} 23. Rac1 {[%clk 0:01:42]}  Qxb3 {[%clk 0:01:30]} 24. a5 {[%clk 0:01:41]}  Qb5 {[%clk 0:01:16]} 25. R8c5 {[%clk 0:01:40]}  Qe2 {[%clk 0:01:14]} 26. h3 {[%clk 0:01:40]}  f5 {[%clk 0:01:02]} 27. Nd4 {[%clk 0:01:39]}  Qd3 {[%clk 0:00:54]} 28. Nxe6 {[%clk 0:01:24]}  Nxe3 {[%clk 0:00:50]} 29. Rc7 {[%clk 0:01:23]}  Kg6 {[%clk 0:00:35]} 30. Nf4+ {[%clk 0:01:20]} 1-0


[Site "https://www.chess.com"]

[Event "Titled Tuesday Blitz April 19 Early 2022"]
[White "Shimelkov, Vasiliy"]
[Black "Gracia Alvarez, Gerardo Antonio"]
[WhiteFideId "13701630"]
[BlackFideId "5109124"]
[WhiteElo "2073"]
[BlackElo "2139"]
[Result "0-1"]
[Round "05"]
[TimeControl "180+1"]
[Date "2022.04.19"]
[WhiteClock "0:00:18"]
[BlackClock "0:01:03"]

1. d4 {[%clk 0:03:00]}  Nf6 {[%clk 0:02:55]} 2. c4 {[%clk 0:03:00]}  c5 {[%clk 0:02:54]} 3. d5 {[%clk 0:03:00]}  b5 {[%clk 0:02:54]} 4. cxb5 {[%clk 0:02:59]}  a6 {[%clk 0:02:54]} 5. bxa6 {[%clk 0:02:59]}  g6 {[%clk 0:02:53]} 6. Nc3 {[%clk 0:02:58]}  Bg7 {[%clk 0:02:53]} 7. Nf3 {[%clk 0:02:57]}  O-O {[%clk 0:02:52]} 8. g3 {[%clk 0:02:57]}  d6 {[%clk 0:02:51]} 9. Bg2 {[%clk 0:02:56]}  Nbd7 {[%clk 0:02:51]} 10. O-O {[%clk 0:02:55]}  Nb6 {[%clk 0:02:52]} 11. Rb1 {[%clk 0:02:54]}  Bf5 {[%clk 0:02:51]} 12. Ra1 {[%clk 0:02:51]}  Ne4 {[%clk 0:02:50]} 13. Nxe4 {[%clk 0:02:41]}  Bxe4 {[%clk 0:02:51]} 14. Ne1 {[%clk 0:02:38]}  Bxg2 {[%clk 0:02:49]} 15. Nxg2 {[%clk 0:02:34]}  Rxa6 {[%clk 0:02:49]} 16. Nf4 {[%clk 0:02:28]}  Qa8 {[%clk 0:02:47]} 17. a3 {[%clk 0:02:16]}  Rb8 {[%clk 0:02:45]} 18. e4 {[%clk 0:02:13]}  Nc4 {[%clk 0:02:41]} 19. Nd3 {[%clk 0:02:12]}  Nxb2 {[%clk 0:02:36]} 20. Bxb2 {[%clk 0:02:04]}  Bxb2 {[%clk 0:02:37]} 21. Nxb2 {[%clk 0:02:04]}  Rxb2 {[%clk 0:02:37]} 22. Qd3 {[%clk 0:01:59]}  Qb7 {[%clk 0:02:17]} 23. Rab1 {[%clk 0:01:38]}  Rxa3 {[%clk 0:02:00]} 24. Qxa3 {[%clk 0:01:01]}  Rxb1 {[%clk 0:01:59]} 25. Qa4 {[%clk 0:00:58]}  Kg7 {[%clk 0:01:44]} 26. Rxb1 {[%clk 0:00:50]}  Qxb1+ {[%clk 0:01:43]} 27. Kg2 {[%clk 0:00:50]}  Qd3 {[%clk 0:01:36]} 28. Qa1+ {[%clk 0:00:44]}  f6 {[%clk 0:01:33]} 29. Qe1 {[%clk 0:00:33]}  c4 {[%clk 0:01:29]} 30. f4 {[%clk 0:00:25]}  c3 {[%clk 0:01:26]} 31. e5 {[%clk 0:00:21]}  fxe5 {[%clk 0:01:14]} 32. fxe5 {[%clk 0:00:20]}  Qxd5+ {[%clk 0:01:13]} 33. Kf1 {[%clk 0:00:20]}  Qxe5 {[%clk 0:01:11]} 34. Qd1 {[%clk 0:00:21]}  Qe4 {[%clk 0:01:04]} 35. h4 {[%clk 0:00:18]}  Qh1+ {[%clk 0:01:03]} 0-1


[Site "https://www.chess.com"]

[Event "Titled Tuesday Blitz April 19 Early 2022"]
[White "Shirov, Alexei"]
[Black "Hua, Lefong"]
[WhiteFideId "2209390"]
[BlackFideId "2602253"]
[WhiteElo "2678"]
[BlackElo "2595"]
[Result "1-0"]
[Round "05"]
[TimeControl "180+1"]
[Date "2022.04.19"]
[WhiteClock "0:00:52"]
[BlackClock "0:00:14"]

1. e4 {[%clk 0:03:00]}  c5 {[%clk 0:02:55]} 2. Nc3 {[%clk 0:02:59]}  g6 {[%clk 0:02:55]} 3. d4 {[%clk 0:02:58]}  cxd4 {[%clk 0:02:54]} 4. Qxd4 {[%clk 0:02:58]}  Nf6 {[%clk 0:02:55]} 5. Nf3 {[%clk 0:02:56]}  Nc6 {[%clk 0:02:53]} 6. Qa4 {[%clk 0:02:56]}  d6 {[%clk 0:02:54]} 7. e5 {[%clk 0:02:55]}  dxe5 {[%clk 0:02:53]} 8. Nxe5 {[%clk 0:02:55]}  Bg7 {[%clk 0:02:53]} 9. Nxc6 {[%clk 0:02:36]}  bxc6 {[%clk 0:02:49]} 10. Be2 {[%clk 0:02:33]}  O-O {[%clk 0:02:47]} 11. O-O {[%clk 0:02:33]}  Nd5 {[%clk 0:02:32]} 12. Ne4 {[%clk 0:02:26]}  Nb6 {[%clk 0:02:11]} 13. Qb3 {[%clk 0:02:19]}  Be6 {[%clk 0:01:58]} 14. Qg3 {[%clk 0:02:12]}  Qd4 {[%clk 0:01:50]} 15. Bf3 {[%clk 0:02:06]}  Bd5 {[%clk 0:01:43]} 16. c3 {[%clk 0:02:01]}  Qe5 {[%clk 0:01:35]} 17. Bf4 {[%clk 0:01:59]}  Qf5 {[%clk 0:01:32]} 18. Rfe1 {[%clk 0:01:54]}  h5 {[%clk 0:01:28]} 19. Qh4 {[%clk 0:01:37]}  e5 {[%clk 0:01:14]} 20. Bg3 {[%clk 0:01:27]}  Rad8 {[%clk 0:01:05]} 21. b3 {[%clk 0:01:21]}  Qe6 {[%clk 0:00:50]} 22. Nc5 {[%clk 0:01:16]}  Qf6 {[%clk 0:00:36]} 23. Qxf6 {[%clk 0:01:14]}  Bxf6 {[%clk 0:00:37]} 24. Bxe5 {[%clk 0:01:13]}  Bxe5 {[%clk 0:00:35]} 25. Rxe5 {[%clk 0:01:13]}  Bxf3 {[%clk 0:00:34]} 26. gxf3 {[%clk 0:01:12]}  Rd2 {[%clk 0:00:34]} 27. Ne4 {[%clk 0:01:09]}  Rc2 {[%clk 0:00:29]} 28. c4 {[%clk 0:01:08]}  Kg7 {[%clk 0:00:28]} 29. Re7 {[%clk 0:01:05]}  Rd8 {[%clk 0:00:22]} 30. Rxa7 {[%clk 0:01:00]}  Rd7 {[%clk 0:00:19]} 31. Rxd7 {[%clk 0:00:55]}  Nxd7 {[%clk 0:00:20]} 32. a4 {[%clk 0:00:55]}  Ne5 {[%clk 0:00:18]} 33. a5 {[%clk 0:00:54]}  Nxf3+ {[%clk 0:00:18]} 34. Kg2 {[%clk 0:00:53]}  Nd4 {[%clk 0:00:14]} 35. a6 {[%clk 0:00:52]} 1-0


[Site "https://www.chess.com"]

[Event "Titled Tuesday Blitz April 19 Early 2022"]
[White "Shyaamnikhil P"]
[Black "Babazada, Khazar"]
[WhiteFideId "5024218"]
[BlackFideId "13413554"]
[WhiteElo "2329"]
[BlackElo "2406"]
[Result "0-1"]
[Round "05"]
[TimeControl "180+1"]
[Date "2022.04.19"]
[WhiteClock "0:00:12"]
[BlackClock "0:01:12"]

1. Nc3 {[%clk 0:02:44]}  d5 {[%clk 0:02:57]} 2. d4 {[%clk 0:02:44]}  Nf6 {[%clk 0:02:57]} 3. Bf4 {[%clk 0:02:42]}  Bf5 {[%clk 0:02:52]} 4. e3 {[%clk 0:02:42]}  e6 {[%clk 0:02:52]} 5. Bd3 {[%clk 0:02:40]}  Bg6 {[%clk 0:02:52]} 6. h4 {[%clk 0:02:39]}  Bd6 {[%clk 0:02:50]} 7. Nf3 {[%clk 0:02:38]}  Bxf4 {[%clk 0:02:49]} 8. exf4 {[%clk 0:02:38]}  Nbd7 {[%clk 0:02:45]} 9. Ne5 {[%clk 0:02:38]}  Bxd3 {[%clk 0:02:42]} 10. Qxd3 {[%clk 0:02:36]}  h5 {[%clk 0:02:40]} 11. O-O-O {[%clk 0:02:34]}  g6 {[%clk 0:02:35]} 12. Rhe1 {[%clk 0:02:26]}  Nxe5 {[%clk 0:02:31]} 13. fxe5 {[%clk 0:02:24]}  Ng4 {[%clk 0:02:29]} 14. Qg3 {[%clk 0:02:22]}  Nh6 {[%clk 0:02:29]} 15. Qf4 {[%clk 0:02:21]}  Nf5 {[%clk 0:02:27]} 16. g3 {[%clk 0:02:20]}  c6 {[%clk 0:02:26]} 17. Ne2 {[%clk 0:02:19]}  Qe7 {[%clk 0:02:25]} 18. Qd2 {[%clk 0:02:15]}  O-O-O {[%clk 0:02:24]} 19. Nf4 {[%clk 0:02:15]}  Kb8 {[%clk 0:02:25]} 20. Qc3 {[%clk 0:02:09]}  Rc8 {[%clk 0:02:25]} 21. Nd3 {[%clk 0:02:09]}  b6 {[%clk 0:02:25]} 22. Kb1 {[%clk 0:01:55]}  Kb7 {[%clk 0:02:24]} 23. b4 {[%clk 0:01:47]}  Ra8 {[%clk 0:02:15]} 24. a3 {[%clk 0:01:45]}  a5 {[%clk 0:02:15]} 25. Kb2 {[%clk 0:01:45]}  axb4 {[%clk 0:02:07]} 26. axb4 {[%clk 0:01:46]}  Ra4 {[%clk 0:02:07]} 27. Ra1 {[%clk 0:01:45]}  Rha8 {[%clk 0:02:06]} 28. Rxa4 {[%clk 0:01:46]}  Rxa4 {[%clk 0:02:07]} 29. Ra1 {[%clk 0:01:46]}  Rxa1 {[%clk 0:01:55]} 30. Kxa1 {[%clk 0:01:46]}  Qf8 {[%clk 0:01:55]} 31. Kb2 {[%clk 0:01:13]}  Qa8 {[%clk 0:01:55]} 32. b5 {[%clk 0:01:09]}  cxb5 {[%clk 0:01:54]} 33. Nb4 {[%clk 0:01:09]}  Qc8 {[%clk 0:01:54]} 34. Qxc8+ {[%clk 0:01:05]}  Kxc8 {[%clk 0:01:55]} 35. Kc3 {[%clk 0:01:00]}  Kd7 {[%clk 0:01:53]} 36. Kd3 {[%clk 0:00:56]}  Nh6 {[%clk 0:01:48]} 37. Na2 {[%clk 0:00:54]}  Ng4 {[%clk 0:01:46]} 38. Ke2 {[%clk 0:00:54]}  Kc7 {[%clk 0:01:42]} 39. Nb4 {[%clk 0:00:53]}  Nh6 {[%clk 0:01:41]} 40. Ke3 {[%clk 0:00:47]}  Nf5+ {[%clk 0:01:39]} 41. Kd3 {[%clk 0:00:47]}  Ne7 {[%clk 0:01:39]} 42. Na2 {[%clk 0:00:45]}  Nc6 {[%clk 0:01:36]} 43. Nc3 {[%clk 0:00:44]}  Nb4+ {[%clk 0:01:31]} 44. Kd2 {[%clk 0:00:44]}  Kc6 {[%clk 0:01:31]} 45. Ne2 {[%clk 0:00:41]}  Na6 {[%clk 0:01:30]} 46. Nf4 {[%clk 0:00:38]}  b4 {[%clk 0:01:29]} 47. Nh3 {[%clk 0:00:37]}  Kd7 {[%clk 0:01:29]} 48. Ng5 {[%clk 0:00:36]}  Ke7 {[%clk 0:01:29]} 49. Nf3 {[%clk 0:00:31]}  Nb8 {[%clk 0:01:25]} 50. Kd3 {[%clk 0:00:29]}  Nc6 {[%clk 0:01:24]} 51. Nd2 {[%clk 0:00:28]}  Na5 {[%clk 0:01:24]} 52. Nf1 {[%clk 0:00:19]}  b3 {[%clk 0:01:22]} 53. cxb3 {[%clk 0:00:18]}  Nxb3 {[%clk 0:01:22]} 54. Ne3 {[%clk 0:00:18]}  Kd7 {[%clk 0:01:22]} 55. Kc3 {[%clk 0:00:18]}  Na5 {[%clk 0:01:22]} 56. f3 {[%clk 0:00:18]}  Nc6 {[%clk 0:01:17]} 57. g4 {[%clk 0:00:18]}  Ne7 {[%clk 0:01:17]} 58. gxh5 {[%clk 0:00:17]}  gxh5 {[%clk 0:01:18]} 59. Kb4 {[%clk 0:00:16]}  Ng6 {[%clk 0:01:18]} 60. Ng2 {[%clk 0:00:15]}  Kc6 {[%clk 0:01:19]} 61. Ka4 {[%clk 0:00:15]}  Ne7 {[%clk 0:01:17]} 62. Kb4 {[%clk 0:00:13]}  Nf5 {[%clk 0:01:17]} 63. Kc3 {[%clk 0:00:13]}  Kb5 {[%clk 0:01:17]} 64. Nf4 {[%clk 0:00:13]}  Nxh4 {[%clk 0:01:17]} 65. Nxh5 {[%clk 0:00:13]}  Nxf3 {[%clk 0:01:18]} 66. Nf6 {[%clk 0:00:13]}  Ka4 {[%clk 0:01:18]} 67. Nd7 {[%clk 0:00:12]}  b5 {[%clk 0:01:19]} 68. Nc5+ {[%clk 0:00:12]}  Ka3 {[%clk 0:01:19]} 69. Na6 {[%clk 0:00:12]}  Ng5 {[%clk 0:01:12]} 0-1


[Site "https://www.chess.com"]